[Event "*** Titled Tuesday Blitz"]
[Site "Chess.com"]
[Date "2021.02.16"]
[Round "7"]
[White "CraiggoryC"]
[Black "AttractiveMustard"]
[Result "0-1"]
[WhiteElo "2218"]
[BlackElo "2378"]
[TimeControl "180+1"]
[EndTime "11:17:38 PST"]
[Termination "AttractiveMustard won by resignation"]

1. e4 {[%clk 0:03:00.9]} 1... c5 {[%clk 0:02:57.6]} 2. Nf3 {[%clk 0:03:00.8]}
2... Nc6 {[%clk 0:02:57.3]} 3. d4 {[%clk 0:03:00.8]} 3... cxd4 {[%clk
0:02:57.4]} 4. Nxd4 {[%clk 0:03:01.7]} 4... Nf6 {[%clk 0:02:57.6]} 5. Nc3 {[%clk
0:03:01.9]} 5... d6 {[%clk 0:02:58]} 6. Bc4 {[%clk 0:03:00.7]} 6... e6 {[%clk
0:02:54.8]} 7. Be3 {[%clk 0:02:59.1]} 7... Be7 {[%clk 0:02:53.6]} 8. Qe2 {[%clk
0:02:55.7]} 8... O-O {[%clk 0:02:53.4]} 9. O-O-O {[%clk 0:02:52.1]} 9... a6
{[%clk 0:02:53.6]} 10. Bb3 {[%clk 0:02:51.2]} 10... Qe8 {[%clk 0:02:53.3]} 11.
g4 {[%clk 0:02:44.1]} 11... Nxd4 {[%clk 0:02:49.8]} 12. Rxd4 {[%clk 0:02:33]}
12... e5 {[%clk 0:02:49.2]} 13. Rd2 {[%clk 0:02:14.2]} 13... Bxg4 {[%clk
0:02:47.6]} 14. f3 {[%clk 0:02:14.4]} 14... Be6 {[%clk 0:02:47.9]} 15. Rg1
{[%clk 0:02:06.3]} 15... Kh8 {[%clk 0:02:46.7]} 16. Bg5 {[%clk 0:01:54.5]} 16...
Nh5 {[%clk 0:02:35.8]} 17. Qe3 {[%clk 0:01:19.7]} 17... Rd8 {[%clk 0:02:12.9]}
18. Rdg2 {[%clk 0:01:11.3]} 18... g6 {[%clk 0:02:08.3]} 19. Bh6 {[%clk
0:01:04.6]} 19... Rg8 {[%clk 0:02:05.9]} 20. Ne2 {[%clk 0:00:47]} 20... Bf8
{[%clk 0:02:00.1]} 21. Bg5 {[%clk 0:00:23.2]} 21... f6 {[%clk 0:01:55.6]} 22.
Bh6 {[%clk 0:00:20.6]} 22... Bxb3 {[%clk 0:01:48.6]} 23. axb3 {[%clk 0:00:20.1]}
23... d5 {[%clk 0:01:38.7]} 24. Bxf8 {[%clk 0:00:19]} 24... Qxf8 {[%clk
0:01:34.9]} 25. Rd1 {[%clk 0:00:16.8]} 25... d4 {[%clk 0:01:34]} 26. Qf2 {[%clk
0:00:15.6]} 26... Qc5 {[%clk 0:01:28.5]} 27. Qh4 {[%clk 0:00:14.5]} 27... d3
{[%clk 0:01:23]} 28. Nc3 {[%clk 0:00:14.4]} 28... Qe3+ {[%clk 0:01:18.6]} 29.
Kb1 {[%clk 0:00:13.6]} 29... dxc2+ {[%clk 0:01:08.3]} 30. Rxc2 {[%clk
0:00:12.9]} 30... Rxd1+ {[%clk 0:01:05]} 31. Nxd1 {[%clk 0:00:13.8]} 31... Qxf3
{[%clk 0:01:04.6]} 32. Rc7 {[%clk 0:00:11.4]} 32... Qxd1+ {[%clk 0:01:03]} 33.
Ka2 {[%clk 0:00:10.4]} 33... Qd2 {[%clk 0:00:59.6]} 34. Qh3 {[%clk 0:00:09.7]}
34... Qa5+ {[%clk 0:00:58.2]} 0-1

[Event "*** Titled Tuesday Blitz"]
[Site "Chess.com"]
[Date "2021.02.16"]
[Round "7"]
[White "Indianlad"]
[Black "Witik"]
[Result "1-0"]
[WhiteElo "2925"]
[BlackElo "2773"]
[TimeControl "180+1"]
[EndTime "11:17:44 PST"]
[Termination "Indianlad won by resignation"]

1. d4 {[%clk 0:03:00.9]} 1... d5 {[%clk 0:02:36]} 2. c4 {[%clk 0:03:01.1]} 2...
e6 {[%clk 0:02:30.6]} 3. Nf3 {[%clk 0:03:01.2]} 3... c6 {[%clk 0:02:30]} 4. Bg5
{[%clk 0:03:01.3]} 4... f6 {[%clk 0:02:12.4]} 5. Bd2 {[%clk 0:03:00.9]} 5... f5
{[%clk 0:02:11.8]} 6. Nc3 {[%clk 0:02:58.6]} 6... Nf6 {[%clk 0:02:05.1]} 7. Bf4
{[%clk 0:02:58.6]} 7... Bb4 {[%clk 0:01:48.2]} 8. e3 {[%clk 0:02:51.5]} 8... Ne4
{[%clk 0:01:47.6]} 9. Rc1 {[%clk 0:02:51.2]} 9... Nd7 {[%clk 0:01:14.5]} 10. Bd3
{[%clk 0:02:48.3]} 10... O-O {[%clk 0:01:10.8]} 11. a3 {[%clk 0:02:41.1]} 11...
Bxc3+ {[%clk 0:01:09.8]} 12. bxc3 {[%clk 0:02:41.5]} 12... g5 {[%clk 0:00:58.9]}
13. Bg3 {[%clk 0:02:39.2]} 13... b6 {[%clk 0:00:25.7]} 14. cxd5 {[%clk
0:02:25.2]} 14... cxd5 {[%clk 0:00:23.7]} 15. Nd2 {[%clk 0:02:22.4]} 15... Nxg3
{[%clk 0:00:16.3]} 16. hxg3 {[%clk 0:02:22.5]} 16... e5 {[%clk 0:00:15.6]} 17.
Bb5 {[%clk 0:02:00.9]} 17... Bb7 {[%clk 0:00:11.4]} 18. Bxd7 {[%clk 0:02:00]}
18... Qxd7 {[%clk 0:00:11.5]} 19. Nf3 {[%clk 0:02:00.7]} 19... exd4 {[%clk
0:00:09.7]} 20. Qxd4 {[%clk 0:02:01]} 20... Qe7 {[%clk 0:00:05.1]} 21. Rh5
{[%clk 0:01:59]} 21... Rf6 {[%clk 0:00:04.5]} 22. Rxg5+ {[%clk 0:01:57.9]} 22...
Rg6 {[%clk 0:00:05.2]} 23. Rxg6+ {[%clk 0:01:54.5]} 23... hxg6 {[%clk
0:00:06.1]} 24. Qb4 {[%clk 0:01:42.5]} 24... Qc5 {[%clk 0:00:03.5]} 25. Kd2
{[%clk 0:01:40.3]} 25... Rc8 {[%clk 0:00:03.4]} 26. Rh1 {[%clk 0:01:40.1]} 26...
Ba6 {[%clk 0:00:03.3]} 27. Qd4 {[%clk 0:01:38.5]} 27... Qxd4+ {[%clk 0:00:03.4]}
28. Nxd4 {[%clk 0:01:38.8]} 28... Kg7 {[%clk 0:00:02.9]} 29. a4 {[%clk
0:01:33.5]} 29... Rc4 {[%clk 0:00:03]} 30. Ra1 {[%clk 0:01:32.9]} 30... Kf6
{[%clk 0:00:03.7]} 31. a5 {[%clk 0:01:32.8]} 31... b5 {[%clk 0:00:03.8]} 32. Nc2
{[%clk 0:01:32.3]} 32... g5 {[%clk 0:00:03.4]} 33. Nb4 {[%clk 0:01:32.5]} 33...
Bb7 {[%clk 0:00:04]} 34. a6 {[%clk 0:01:32.9]} 34... Ba8 {[%clk 0:00:04.6]} 35.
Ra5 {[%clk 0:01:33.2]} 35... Rc5 {[%clk 0:00:04]} 36. Nd3 {[%clk 0:01:33.6]}
36... Rc6 {[%clk 0:00:04.4]} 37. f4 {[%clk 0:01:34.1]} 37... g4 {[%clk
0:00:04.3]} 38. Nb4 {[%clk 0:01:33.7]} 38... Rb6 {[%clk 0:00:04.2]} 39. Kd3
{[%clk 0:01:32.8]} 39... Ke7 {[%clk 0:00:04.6]} 40. Kd4 {[%clk 0:01:32.3]} 40...
Kd6 {[%clk 0:00:05.4]} 41. Ra1 {[%clk 0:01:32.8]} 41... Rb8 {[%clk 0:00:05.5]}
42. Rh1 {[%clk 0:01:33.4]} 42... Re8 {[%clk 0:00:06.4]} 43. Rh6+ {[%clk
0:01:33.2]} 43... Kd7 {[%clk 0:00:07]} 44. Rh7+ {[%clk 0:01:30.7]} 44... Kd6
{[%clk 0:00:06.3]} 45. Rxa7 {[%clk 0:01:31.3]} 1-0

[Event "*** Titled Tuesday Blitz"]
[Site "Chess.com"]
[Date "2021.02.16"]
[Round "7"]
[White "barbara25"]
[Black "Pogosian_Manvel"]
[Result "0-1"]
[WhiteElo "2243"]
[BlackElo "2401"]
[TimeControl "180+1"]
[EndTime "11:17:48 PST"]
[Termination "Pogosian_Manvel won by resignation"]

1. e4 {[%clk 0:03:00.9]} 1... c6 {[%clk 0:02:54.1]} 2. d4 {[%clk 0:03:00.6]}
2... d5 {[%clk 0:02:55]} 3. f3 {[%clk 0:03:00.5]} 3... dxe4 {[%clk 0:02:54.8]}
4. fxe4 {[%clk 0:03:00]} 4... e5 {[%clk 0:02:55.2]} 5. Nf3 {[%clk 0:03:00.4]}
5... Be6 {[%clk 0:02:53.9]} 6. c3 {[%clk 0:02:55.5]} 6... Nd7 {[%clk 0:02:53.2]}
7. Be2 {[%clk 0:02:55.5]} 7... Ngf6 {[%clk 0:02:52.6]} 8. Nbd2 {[%clk
0:02:54.7]} 8... Be7 {[%clk 0:02:52.4]} 9. Qc2 {[%clk 0:02:55.1]} 9... O-O
{[%clk 0:02:52.3]} 10. O-O {[%clk 0:02:55.3]} 10... Qb6 {[%clk 0:02:48.3]} 11.
Kh1 {[%clk 0:02:54]} 11... Rad8 {[%clk 0:02:45.7]} 12. a4 {[%clk 0:02:49.1]}
12... a5 {[%clk 0:02:45.2]} 13. h3 {[%clk 0:02:42.4]} 13... Nh5 {[%clk
0:02:38.7]} 14. Kh2 {[%clk 0:02:36.3]} 14... Qc7 {[%clk 0:02:29.6]} 15. Kg1
{[%clk 0:02:33.5]} 15... Ng3 {[%clk 0:02:28.7]} 16. Re1 {[%clk 0:02:33.1]} 16...
f5 {[%clk 0:02:20.4]} 17. exf5 {[%clk 0:02:29.8]} 17... Bxf5 {[%clk 0:02:19.1]}
18. Qb3+ {[%clk 0:02:30.1]} 18... Kh8 {[%clk 0:02:07.2]} 19. Nc4 {[%clk
0:02:08.5]} 19... e4 {[%clk 0:01:50.8]} 20. Nfe5 {[%clk 0:02:04.9]} 20... Be6
{[%clk 0:01:46.3]} 21. Qc2 {[%clk 0:02:03.3]} 21... Bd5 {[%clk 0:01:13.3]} 22.
Nxd7 {[%clk 0:01:55]} 22... Qxd7 {[%clk 0:01:11.7]} 23. Ne5 {[%clk 0:01:55.1]}
23... Qf5 {[%clk 0:01:07.2]} 24. Bg4 {[%clk 0:01:53]} 24... Qf1+ {[%clk
0:00:58.2]} 25. Rxf1 {[%clk 0:01:52.5]} 25... Rxf1+ {[%clk 0:00:57.8]} 26. Kh2
{[%clk 0:01:53]} 26... Bh4 {[%clk 0:00:58.4]} 27. Bg5 {[%clk 0:01:48.2]} 27...
Rxa1 {[%clk 0:00:56.7]} 28. Bxh4 {[%clk 0:01:48.2]} 28... Nf1+ {[%clk
0:00:55.9]} 29. Kg1 {[%clk 0:01:45.2]} 29... Ne3+ {[%clk 0:00:55.7]} 30. Kf2
{[%clk 0:01:42.1]} 30... Nxc2 {[%clk 0:00:50.2]} 31. Bxd8 {[%clk 0:01:42.2]}
31... e3+ {[%clk 0:00:50.3]} 32. Ke2 {[%clk 0:01:42]} 32... Be4 {[%clk 0:00:39]}
33. Bh4 {[%clk 0:01:31.8]} 33... Ra2 {[%clk 0:00:33.7]} 34. Be6 {[%clk
0:01:16.9]} 34... Bd5 {[%clk 0:00:33.2]} 35. Bf5 {[%clk 0:00:41.4]} 35... Rxb2
{[%clk 0:00:31.4]} 36. c4 {[%clk 0:00:41.8]} 36... Nxd4+ {[%clk 0:00:30.9]} 0-1

[Event "*** Titled Tuesday Blitz"]
[Site "Chess.com"]
[Date "2021.02.16"]
[Round "7"]
[White "Msb2"]
[Black "TregubovP"]
[Result "1-0"]
[WhiteElo "2867"]
[BlackElo "2561"]
[TimeControl "180+1"]
[EndTime "11:17:50 PST"]
[Termination "Msb2 won by resignation"]

1. d4 {[%clk 0:03:00.9]} 1... Nf6 {[%clk 0:02:59.5]} 2. Nf3 {[%clk 0:03:00.5]}
2... e6 {[%clk 0:02:58.2]} 3. e3 {[%clk 0:03:00.8]} 3... d5 {[%clk 0:02:56.1]}
4. Bd3 {[%clk 0:03:01.3]} 4... Be7 {[%clk 0:02:56.3]} 5. O-O {[%clk 0:03:01.3]}
5... O-O {[%clk 0:02:56.8]} 6. b3 {[%clk 0:03:01.8]} 6... b6 {[%clk 0:02:57.4]}
7. Bb2 {[%clk 0:03:02.1]} 7... Bb7 {[%clk 0:02:57.9]} 8. Nbd2 {[%clk 0:03:02.3]}
8... a6 {[%clk 0:02:55]} 9. Qe2 {[%clk 0:02:59.3]} 9... Ne4 {[%clk 0:02:54.4]}
10. c4 {[%clk 0:02:53.8]} 10... Nd7 {[%clk 0:02:51.9]} 11. Rac1 {[%clk
0:02:52.1]} 11... f5 {[%clk 0:02:29.7]} 12. cxd5 {[%clk 0:02:50.9]} 12... exd5
{[%clk 0:02:28.5]} 13. Ne5 {[%clk 0:02:50.2]} 13... Nxe5 {[%clk 0:02:21.7]} 14.
dxe5 {[%clk 0:02:51.1]} 14... c5 {[%clk 0:02:19.2]} 15. f3 {[%clk 0:02:50.3]}
15... Nxd2 {[%clk 0:02:17.8]} 16. Qxd2 {[%clk 0:02:51.2]} 16... Qd7 {[%clk
0:02:16.5]} 17. Qf2 {[%clk 0:02:37.9]} 17... Rac8 {[%clk 0:02:13.3]} 18. Rfd1
{[%clk 0:02:37.1]} 18... Qe6 {[%clk 0:02:13.1]} 19. a4 {[%clk 0:02:32.5]} 19...
h6 {[%clk 0:02:09.7]} 20. Qe2 {[%clk 0:02:31.9]} 20... Ra8 {[%clk 0:01:56.1]}
21. Rd2 {[%clk 0:02:16.4]} 21... Kh8 {[%clk 0:01:55.2]} 22. Rcd1 {[%clk
0:02:07.2]} 22... Rfc8 {[%clk 0:01:53.9]} 23. Bc2 {[%clk 0:01:54.2]} 23... Bc6
{[%clk 0:01:42.6]} 24. Qd3 {[%clk 0:01:36]} 24... Rf8 {[%clk 0:01:36.9]} 25. Qe2
{[%clk 0:01:30.4]} 25... b5 {[%clk 0:01:31.3]} 26. Qf2 {[%clk 0:01:16]} 26...
Rab8 {[%clk 0:01:29]} 27. Bc3 {[%clk 0:01:15.7]} 27... Rfd8 {[%clk 0:01:08.9]}
28. Qg3 {[%clk 0:01:11.5]} 28... Bg5 {[%clk 0:00:56.5]} 29. f4 {[%clk
0:01:03.8]} 29... Be7 {[%clk 0:00:56.2]} 30. Qh3 {[%clk 0:01:04.3]} 30... Rf8
{[%clk 0:00:55.1]} 31. e4 {[%clk 0:00:52.6]} 31... dxe4 {[%clk 0:00:34.4]} 32.
Rd6 {[%clk 0:00:51.8]} 32... Bxd6 {[%clk 0:00:33.5]} 33. Rxd6 {[%clk 0:00:52.7]}
33... Qe8 {[%clk 0:00:24.6]} 34. Rxh6+ {[%clk 0:00:52.3]} 34... gxh6 {[%clk
0:00:22.3]} 35. Qxh6+ {[%clk 0:00:53.2]} 35... Kg8 {[%clk 0:00:22.8]} 36. e6
{[%clk 0:00:54.1]} 1-0

[Event "*** Titled Tuesday Blitz"]
[Site "Chess.com"]
[Date "2021.02.16"]
[Round "7"]
[White "Alexsur1981"]
[Black "Buffy7"]
[Result "1-0"]
[WhiteElo "2847"]
[BlackElo "2645"]
[TimeControl "180+1"]
[EndTime "11:17:54 PST"]
[Termination "Alexsur1981 won by resignation"]

1. e4 {[%clk 0:03:00.9]} 1... c5 {[%clk 0:02:58.8]} 2. Nc3 {[%clk 0:03:01.1]}
2... a6 {[%clk 0:02:56.6]} 3. Nf3 {[%clk 0:03:01]} 3... d6 {[%clk 0:02:56.8]} 4.
d4 {[%clk 0:03:00.1]} 4... cxd4 {[%clk 0:02:57.7]} 5. Nxd4 {[%clk 0:03:00.8]}
5... Nf6 {[%clk 0:02:58.3]} 6. Rg1 {[%clk 0:03:00.8]} 6... e5 {[%clk 0:02:55.4]}
7. Nb3 {[%clk 0:03:01.1]} 7... Be6 {[%clk 0:02:50.4]} 8. g4 {[%clk 0:03:01.1]}
8... d5 {[%clk 0:02:46.5]} 9. g5 {[%clk 0:03:00.3]} 9... Nxe4 {[%clk 0:02:45]}
10. Nxe4 {[%clk 0:03:00.9]} 10... dxe4 {[%clk 0:02:45.9]} 11. Qxd8+ {[%clk
0:03:01.4]} 11... Kxd8 {[%clk 0:02:46.5]} 12. Be3 {[%clk 0:03:02.3]} 12... Nd7
{[%clk 0:02:32.3]} 13. Bg2 {[%clk 0:03:00.5]} 13... Bf5 {[%clk 0:02:11.4]} 14.
O-O-O {[%clk 0:02:57.7]} 14... Kc7 {[%clk 0:02:11]} 15. Nd2 {[%clk 0:02:56.7]}
15... Nc5 {[%clk 0:01:59.6]} 16. Kb1 {[%clk 0:02:50.1]} 16... Be7 {[%clk
0:01:52.2]} 17. Bxc5 {[%clk 0:02:44.1]} 17... Bxc5 {[%clk 0:01:52.2]} 18. Nxe4
{[%clk 0:02:44]} 18... Bxe4 {[%clk 0:01:32.9]} 19. Bxe4 {[%clk 0:02:44.9]} 19...
Rad8 {[%clk 0:01:32.7]} 20. Rd3 {[%clk 0:02:35.8]} 20... Rxd3 {[%clk 0:00:48.1]}
21. cxd3 {[%clk 0:02:36.7]} 21... b6 {[%clk 0:00:41.8]} 22. Rg3 {[%clk
0:02:34.7]} 22... Kd6 {[%clk 0:00:38.7]} 23. Rf3 {[%clk 0:02:33.8]} 23... Ke6
{[%clk 0:00:35.1]} 24. Bb7 {[%clk 0:02:32.4]} 24... a5 {[%clk 0:00:32.7]} 25.
Ba6 {[%clk 0:02:32.6]} 25... Ke7 {[%clk 0:00:22.7]} 26. Bc4 {[%clk 0:02:27.3]}
26... f6 {[%clk 0:00:21.8]} 27. gxf6+ {[%clk 0:02:27]} 27... gxf6 {[%clk
0:00:22.7]} 28. Kc2 {[%clk 0:02:26.2]} 28... h5 {[%clk 0:00:21.2]} 29. Kd2
{[%clk 0:02:21.5]} 29... Rh7 {[%clk 0:00:20.6]} 30. Ke2 {[%clk 0:02:18.1]} 30...
h4 {[%clk 0:00:14.9]} 31. Bd5 {[%clk 0:02:14.3]} 31... Rg7 {[%clk 0:00:13.3]}
32. Kf1 {[%clk 0:02:14]} 32... Rg4 {[%clk 0:00:11.8]} 33. Be4 {[%clk 0:02:06.6]}
33... Rf4 {[%clk 0:00:10]} 34. Rxf4 {[%clk 0:02:06.8]} 34... exf4 {[%clk
0:00:10.9]} 35. Kg2 {[%clk 0:02:06.4]} 35... Kd6 {[%clk 0:00:11.2]} 36. f3
{[%clk 0:02:06]} 36... Bd4 {[%clk 0:00:11.4]} 37. Kh3 {[%clk 0:02:03.7]} 37...
Bf2 {[%clk 0:00:11.2]} 38. Kg4 {[%clk 0:01:58.8]} 38... Ke5 {[%clk 0:00:11.7]}
39. b3 {[%clk 0:01:58.2]} 39... b5 {[%clk 0:00:10.8]} 40. Bg6 {[%clk 0:01:54.6]}
40... b4 {[%clk 0:00:10.9]} 41. Bh7 {[%clk 0:01:54.3]} 41... Be1 {[%clk
0:00:11.2]} 42. Kh5 {[%clk 0:01:44.7]} 42... Bf2 {[%clk 0:00:10.6]} 43. h3
{[%clk 0:01:44.6]} 43... Be1 {[%clk 0:00:10.7]} 44. Kg6 {[%clk 0:01:43.3]} 44...
Bf2 {[%clk 0:00:11.2]} 45. Kf7 {[%clk 0:01:43.5]} 45... Be1 {[%clk 0:00:11.2]}
46. Ke7 {[%clk 0:01:43.8]} 46... Bf2 {[%clk 0:00:11.6]} 47. Kd7 {[%clk
0:01:44.2]} 47... Kd4 {[%clk 0:00:11.9]} 48. Kc6 {[%clk 0:01:43.7]} 48... Kc3
{[%clk 0:00:12.1]} 49. Kb5 {[%clk 0:01:44.2]} 49... Kb2 {[%clk 0:00:11.6]} 50.
Kxa5 {[%clk 0:01:44.8]} 50... Be1 {[%clk 0:00:12.3]} 51. d4 {[%clk 0:01:43.7]}
51... Kxa2 {[%clk 0:00:11.9]} 52. Ka4 {[%clk 0:01:44.2]} 52... Kb2 {[%clk
0:00:08.2]} 53. d5 {[%clk 0:01:43.9]} 53... Kc3 {[%clk 0:00:08.4]} 54. d6 {[%clk
0:01:44]} 54... Bf2 {[%clk 0:00:09]} 55. Kb5 {[%clk 0:01:44]} 1-0

[Event "*** Titled Tuesday Blitz"]
[Site "Chess.com"]
[Date "2021.02.16"]
[Round "7"]
[White "LuisFSiles"]
[Black "Grimlock_Glasgow"]
[Result "0-1"]
[WhiteElo "2299"]
[BlackElo "2446"]
[TimeControl "180+1"]
[EndTime "11:17:54 PST"]
[Termination "Grimlock_Glasgow won on time"]

1. e4 {[%clk 0:03:00.9]} 1... e5 {[%clk 0:02:58.4]} 2. Nf3 {[%clk 0:02:58.9]}
2... d5 {[%clk 0:02:58.3]} 3. exd5 {[%clk 0:02:55]} 3... Bd6 {[%clk 0:02:58.5]}
4. Nc3 {[%clk 0:02:50.1]} 4... Nf6 {[%clk 0:02:57.2]} 5. d3 {[%clk 0:02:48.9]}
5... h6 {[%clk 0:02:56]} 6. g3 {[%clk 0:02:42.1]} 6... O-O {[%clk 0:02:23.4]} 7.
Bg2 {[%clk 0:02:41]} 7... Nbd7 {[%clk 0:02:20]} 8. O-O {[%clk 0:02:36.2]} 8...
Nb6 {[%clk 0:02:18.4]} 9. Re1 {[%clk 0:02:36.1]} 9... Re8 {[%clk 0:02:17.1]} 10.
Nd2 {[%clk 0:02:33.1]} 10... Bb4 {[%clk 0:02:11.1]} 11. Nde4 {[%clk 0:01:43.1]}
11... Nbxd5 {[%clk 0:02:00.8]} 12. Nxd5 {[%clk 0:01:38.4]} 12... Nxd5 {[%clk
0:01:59.8]} 13. c3 {[%clk 0:01:38.1]} 13... Bf8 {[%clk 0:01:56.1]} 14. d4 {[%clk
0:01:34.4]} 14... exd4 {[%clk 0:01:34.6]} 15. Qxd4 {[%clk 0:01:35.3]} 15... c6
{[%clk 0:01:31.2]} 16. Rd1 {[%clk 0:01:07.8]} 16... Qb6 {[%clk 0:01:27.1]} 17.
Qxb6 {[%clk 0:01:05]} 17... axb6 {[%clk 0:01:28]} 18. a3 {[%clk 0:00:49.9]}
18... Bg4 {[%clk 0:01:18.8]} 19. f3 {[%clk 0:00:36.6]} 19... Bf5 {[%clk
0:01:18.1]} 20. c4 {[%clk 0:00:35.4]} 20... Bxe4 {[%clk 0:01:14.9]} 21. fxe4
{[%clk 0:00:34.1]} 21... Bc5+ {[%clk 0:01:08.4]} 22. Kh1 {[%clk 0:00:23.7]}
22... Nf6 {[%clk 0:01:07.2]} 23. Bd2 {[%clk 0:00:14.4]} 23... Nxe4 {[%clk
0:01:00.7]} 24. Bxe4 {[%clk 0:00:09.9]} 24... Rxe4 {[%clk 0:01:01.6]} 25. Re1
{[%clk 0:00:08.1]} 25... Rxc4 {[%clk 0:00:56.7]} 26. Bc3 {[%clk 0:00:05.9]}
26... b5 {[%clk 0:00:47.3]} 27. Rac1 {[%clk 0:00:01.6]} 27... f6 {[%clk
0:00:37.9]} 0-1

[Event "*** Titled Tuesday Blitz"]
[Site "Chess.com"]
[Date "2021.02.16"]
[Round "7"]
[White "Kostukov_Alex"]
[Black "Fiona"]
[Result "0-1"]
[WhiteElo "2311"]
[BlackElo "2134"]
[TimeControl "180+1"]
[EndTime "11:17:55 PST"]
[Termination "Fiona won on time"]

1. g3 {[%clk 0:01:46.8]} 1... d5 {[%clk 0:02:58.4]} 2. Bg2 {[%clk 0:01:47.7]}
2... c6 {[%clk 0:02:59.1]} 3. d3 {[%clk 0:01:47.8]} 3... e5 {[%clk 0:02:59.5]}
4. e4 {[%clk 0:01:48.3]} 4... Be6 {[%clk 0:02:57.2]} 5. Qe2 {[%clk 0:01:47.4]}
5... Bd6 {[%clk 0:02:55.6]} 6. Nf3 {[%clk 0:01:46.8]} 6... f6 {[%clk 0:02:50.1]}
7. O-O {[%clk 0:01:41.1]} 7... Ne7 {[%clk 0:02:45.8]} 8. d4 {[%clk 0:01:40.8]}
8... Nd7 {[%clk 0:02:34.7]} 9. dxe5 {[%clk 0:01:38.8]} 9... Nxe5 {[%clk
0:02:23.9]} 10. Nd4 {[%clk 0:01:28.5]} 10... Bg4 {[%clk 0:02:03.8]} 11. f3
{[%clk 0:01:22.4]} 11... Bh5 {[%clk 0:02:03]} 12. exd5 {[%clk 0:01:17.4]} 12...
cxd5 {[%clk 0:01:59]} 13. Ne6 {[%clk 0:01:02.4]} 13... Qb6+ {[%clk 0:01:42.4]}
14. Be3 {[%clk 0:00:58.4]} 14... Qxb2 {[%clk 0:01:42.8]} 15. Nxg7+ {[%clk
0:00:47.6]} 15... Kf7 {[%clk 0:01:43.1]} 16. Nxh5 {[%clk 0:00:47.1]} 16... Qxa1
{[%clk 0:01:41.9]} 17. Nd2 {[%clk 0:00:47.1]} 17... Qc3 {[%clk 0:01:35.5]} 18.
f4 {[%clk 0:00:38.2]} 18... Nc4 {[%clk 0:01:25.9]} 19. Nxc4 {[%clk 0:00:31.4]}
19... Qxc4 {[%clk 0:01:26.8]} 20. Qg4 {[%clk 0:00:23.6]} 20... Rhg8 {[%clk
0:01:17.7]} 21. Qd7 {[%clk 0:00:21.3]} 21... Qc6 {[%clk 0:01:13.2]} 22. Qh3
{[%clk 0:00:16.3]} 22... Bc5 {[%clk 0:01:03.7]} 23. Bxc5 {[%clk 0:00:13.5]}
23... Qxc5+ {[%clk 0:01:04.6]} 24. Kh1 {[%clk 0:00:13.7]} 24... Qc8 {[%clk
0:00:57.6]} 25. Qh4 {[%clk 0:00:11.5]} 25... Qf5 {[%clk 0:00:58.3]} 26. Bh3
{[%clk 0:00:09]} 26... Qe4+ {[%clk 0:00:55.8]} 27. Bg2 {[%clk 0:00:09.2]} 27...
Qg6 {[%clk 0:00:56]} 28. h3 {[%clk 0:00:03]} 28... Nf5 {[%clk 0:00:54.9]} 29.
Bxd5+ {[%clk 0:00:02.6]} 29... Kf8 {[%clk 0:00:51.4]} 30. Qxf6+ {[%clk
0:00:01.7]} 30... Qxf6 {[%clk 0:00:51.4]} 31. Nxf6 {[%clk 0:00:01.7]} 31... Rg6
{[%clk 0:00:46]} 0-1

[Event "*** Titled Tuesday Blitz"]
[Site "Chess.com"]
[Date "2021.02.16"]
[Round "7"]
[White "sara_khm"]
[Black "kobemagic"]
[Result "1-0"]
[WhiteElo "2650"]
[BlackElo "2407"]
[TimeControl "180+1"]
[EndTime "11:17:57 PST"]
[Termination "sara_khm won by checkmate"]

1. d4 {[%clk 0:03:00.9]} 1... Nf6 {[%clk 0:02:59.4]} 2. c4 {[%clk 0:03:00.1]}
2... c5 {[%clk 0:02:59.3]} 3. Nf3 {[%clk 0:02:57.9]} 3... cxd4 {[%clk 0:02:59]}
4. Nxd4 {[%clk 0:02:58.1]} 4... e5 {[%clk 0:02:58.3]} 5. Nf3 {[%clk 0:02:57.2]}
5... Nc6 {[%clk 0:02:56.5]} 6. Nc3 {[%clk 0:02:56.9]} 6... Bb4 {[%clk
0:02:54.8]} 7. Qb3 {[%clk 0:02:51.9]} 7... e4 {[%clk 0:02:40.3]} 8. Ng5 {[%clk
0:02:45.7]} 8... O-O {[%clk 0:02:23.3]} 9. Bd2 {[%clk 0:02:33.5]} 9... Nd4
{[%clk 0:02:11.2]} 10. Qd1 {[%clk 0:02:31.3]} 10... d5 {[%clk 0:01:55.8]} 11.
cxd5 {[%clk 0:02:27.5]} 11... Bf5 {[%clk 0:01:29.5]} 12. e3 {[%clk 0:02:07.9]}
12... Bxc3 {[%clk 0:01:22.1]} 13. bxc3 {[%clk 0:02:06.9]} 13... Nxd5 {[%clk
0:01:19.2]} 14. exd4 {[%clk 0:01:24.4]} 14... e3 {[%clk 0:01:15.2]} 15. fxe3
{[%clk 0:01:20.8]} 15... Qxg5 {[%clk 0:01:11.6]} 16. Qf3 {[%clk 0:01:20.9]}
16... Bg6 {[%clk 0:00:54.5]} 17. h4 {[%clk 0:00:55.7]} 17... Qd8 {[%clk
0:00:41.4]} 18. e4 {[%clk 0:00:43.5]} 18... Bxe4 {[%clk 0:00:37.3]} 19. Qg3
{[%clk 0:00:43.5]} 19... Re8 {[%clk 0:00:33.2]} 20. Be2 {[%clk 0:00:43.8]} 20...
Bg6 {[%clk 0:00:23.3]} 21. Kf2 {[%clk 0:00:43.2]} 21... Qf6+ {[%clk 0:00:18.8]}
22. Bf3 {[%clk 0:00:43.5]} 22... Qf5 {[%clk 0:00:16.5]} 23. h5 {[%clk 0:00:41]}
23... Qc2 {[%clk 0:00:13.9]} 24. hxg6 {[%clk 0:00:36.9]} 24... Qxd2+ {[%clk
0:00:13.4]} 25. Kg1 {[%clk 0:00:37.1]} 25... hxg6 {[%clk 0:00:12.7]} 26. Bxd5
{[%clk 0:00:34.1]} 26... Re3 {[%clk 0:00:11]} 27. Qf2 {[%clk 0:00:29.7]} 27...
Qxc3 {[%clk 0:00:10]} 28. Qxf7# {[%clk 0:00:29.6]} 1-0